Workbook

Sheet OPĆI DIO
A1: FINANCIJSKI PLAN OŠ VUGROVEC - KAŠINA ZA 2016. I PROJEKCIJA PLANA ZA 2017. I 2018. GODINU
A2: OPĆI DIO
F5: Prijedlog plana za 2016. | G5: Projekcija plana za 2017. | H5: Projekcija plana za 2018.
A6: PRIHODI UKUPNO | F6: 3319040 | G6: 3392997 | H6: 3397261
A7: PRIHODI POSLOVANJA
A8: PRIHODI OD NEFINANCIJSKE IMOVINE
A9: RASHODI UKUPNO | F9: 3319040 | G9: 3392997 | H9: 3397261
A10: RASHODI POSLOVANJA
A11: RASHODI ZA NEFINANCIJSKU IMOVINU
A12: RAZLIKA - VIŠAK / MANJAK | F12: =+F6-F9 -> 0 | G12: =+G6-G9 -> 0 | H12: =+H6-H9 -> 0
F14: Prijedlog plana za 2015. | G14: Projekcija plana za 2016. | H14: Projekcija plana za 2017.
A15: VIŠAK/MANJAK IZ PRETHODNE GODINE | F15: 0 | G15: 0 | H15: 0
F17: Prijedlog plana za 2015. | G17: Projekcija plana za 2016. | H17: Projekcija plana za 2017.
A18: PRIMICI OD FINANCIJSKE IMOVINE I ZADUŽIVANJA
A19: IZDACI ZA FINANCIJSKU IMOVINU I OTPLATE ZAJMOVA
A20: NETO FINANCIRANJE
A22: VIŠAK / MANJAK + NETO FINANCIRANJE | F22: =SUM(F12,F15,F20) -> 0 | G22: =SUM(G12,G15,G20) -> 0 | H22: =SUM(H12,H15,H20) -> 0

Sheet PLAN PRIHODA
A1: PLAN PRIHODA I PRIMITAKA
H2: u kunama
A3: Izvor prihoda i primitaka | B3: 2016.
A4: Oznaka rač.iz računskog plana | B4: Opći prihodi i primici | C4: Vlastiti prihodi | D4: Prihodi za posebne namjene | E4: Pomoći | F4: Donacije | G4: Prihodi od nefinancijske imovine i nadoknade šteta s osnova osiguranja | H4: Namjenski primici od zaduživanja
A5: 652 | C5: 0 | D5: 340000
A6: 661
A7: 671 | B7: 2954040
A8: 661 | C8: 25000
A9: 671
A14: Ukupno (po izvorima) | B14: 2954040 | C14: 25000 | D14: =D5 -> 340000 | E14: 0 | F14: =+F6 -> 0 | G14: 0 | H14: 0
A15: Ukupno prihodi i primici za 2016. | B15: =B14+C14+D14+E14+F14+G14+H14 -> 3319040
A17: Izvor prihoda i primitaka | B17: 2017.
A18: Oznaka rač.iz računskog plana | B18: Opći prihodi i primici | C18: Vlastiti prihodi | D18: Prihodi za posebne namjene | E18: Pomoći | F18: Donacije | G18: Prihodi od nefinancijske imovine i nadoknade šteta s osnova osiguranja | H18: Namjenski primici od zaduživanja
A19: 652 | D19: 350000
A20: 663
A21: 671 | B21: 3012997
A22: 661 | C22: 30000
A28: Ukupno (po izvorima) | B28: 3012997 | C28: 30000 | D28: 350000 | E28: 0 | F28: =+F20 -> 0 | G28: 0 | H28: 0
A29: Ukupno prihodi i primici za 2017. | B29: =B28+C28+D28+E28+F28+G28+H28 -> 3392997
A31: Izvor prihoda i primitaka | B31: 2018.
A32: Oznaka rač.iz računskog plana | B32: Opći prihodi i primici | C32: Vlastiti prihodi | D32: Prihodi za posebne namjene | E32: Pomoći | F32: Donacije | G32: Prihodi od nefinancijske imovine i nadoknade šteta s osnova osiguranja | H32: Namjenski primici od zaduživanja
A33: 652 | D33: 350000
A34: 663
A35: 671 | B35: 3017261
A36: 661 | C36: 30000
A42: Ukupno (po izvorima) | B42: 3017261 | C42: 30000 | D42: 350000 | E42: 0 | F42: =+F34 -> 0 | G42: 0 | H42: 0
A43: Ukupno prihodi i primici za 2018. | B43: =B42+C42+D42+E42+F42+G42+H42 -> 3397261

Sheet PLAN RASHODA I IZDATAKA
K1: Obrazac FIN. PL.-OŠ
A2: PLAN RASHODA I IZDATAKA 2016.-2018.
A4: Korisnik proračuna-OŠ:VUGROVEC - KAŠINA
A5: Kontak osoba:Nada Milec
A6: Tel:2059-256, 2055-035
K7: u kunama
A8: Šifra | B8: Naziv | C8: PRIJEDLOG PLANA ZA 2016. (kol. 4+5+6+7+8+9+10) | D8: Opći prihodi i primici | E8: Vlastiti prihodi | F8: Prihodi za posebne namjene | G8: Pomoći | H8: Donacije | I8: Prihodi od nefinancijske imovine i nadoknade šteta s osnova osiguranja | J8: Namjenski primici od zaduživanja | K8: PROJEKCIJA PLANA ZA 2017. | L8: PROJEKCIJA PLANA ZA 2018.
A9: 1 | B9: 2 | C9: 3 | D9: 4 | E9: 5 | F9: 6 | G9: 7 | H9: 8 | I9: 9 | J9: 10 | K9: 11 | L9: 12
A10: Program 1001. DECENTRALIZIRANA SREDSTVA ZA OSNOVNO ŠKOLSTVO | C10: =C11 -> 1249440 | D10: =D11 -> 1219440 | E10: 20000 | F10: 10000 | G10: 0 | H10: 0 | I10: 0 | J10: 0 | K10: 1256937 | L10: 1258822
B11: Aktivnost 100001. REDOVNA DJELATNOST OSNOVNIH ŠKOLA | C11: =SUM(C12,C32,C36) -> 1249440 | D11: =SUM(D12,D32,D36) -> 1219440 | E11: 20000 | F11: 10000 | G11: 0 | H11: 0 | I11: 0 | J11: 0 | K11: 1256937 | L11: 1258822
A12: 32 | B12: Materijalni rashodi | C12: =SUM(C13:C31) -> 1243440 | D12: =SUM(D13:D31) -> 1213440 | E12: 20000 | F12: 10000 | G12: 0 | H12: 0 | I12: 0 | J12: 0 | K12: 1250901 | L12: 1252777
A13: 3211 | B13: Službena putovanja | C13: 25000 | D13: 15000 | F13: 10000 | K13: 1250901 | L13: 1252777
A14: 3213 | B14: Stručno usavršavanje zaposlenika | C14: 18000 | D14: 18000
A15: 3221 | B15: Uredski materijali i ostali materijalni rashodi | C15: 150000 | D15: 150000
A16: 3223 | B16: Energija | C16: 700000 | D16: 700000
A17: 3224 | B17: Materijal i dijelovi za tekuće investicijsko održavanje | C17: 50000 | D17: 30000 | E17: 20000
A18: 3225 | B18: Sitni inventar i auto gume | C18: 25800 | D18: 25800
A19: 3231 | B19: Usluge telefona, pošte i prijevoza | C19: 36000 | D19: 36000
A20: 3232 | B20: Usluge tekućeg i investicijskog održavanja | C20: 22000 | D20: 22000 | E20: 0
A21: 3233 | B21: Usluge promidžbe i informiranja | C21: 8000 | D21: 8000
A22: 3234 | B22: Komunalne usluge | C22: 130000 | D22: 130000
A23: 3235 | B23: Zakupnine i najamnine
A24: 3236 | B24: Zdravstvene i veterinarske usluge | C24: 42000 | D24: 42000
A25: 3237 | B25: Intelektualne i osobne usluge | C25: 5000 | D25: 5000
A26: 3238 | B26: Računalne usluge | C26: 10940 | D26: 10940
A27: 3239 | B27: Ostale usluge | C27: 2000 | D27: 2000
A28: 3292 | B28: Premije osiguranja | C28: 6700 | D28: 6700
A29: 3293 | B29: Reprezentacija | C29: 3000 | D29: 3000
A30: 3294 | B30: Članarine | C30: 1000 | D30: 1000
A31: 3299 | B31: Ostali nespomenuti rashodi poslovanja | C31: 8000 | D31: 8000
A32: 34 | B32: Financijski rashodi | C32: =SUM(C33:C35) -> 6000 | D32: =SUM(D33:D35) -> 6000 | E32: 0 | F32: 0 | G32: 0 | H32: 0 | I32: 0 | J32: 0 | K32: 6036 | L32: 6045
A33: 3431 | B33: Bankarske usluge i usluge platnog prometa | C33: 4500 | D33: 4500 | K33: 4527 | L33: 4534
A34: 3433 | B34: Zatezne kamate | C34: 1500 | D34: 1500 | K34: 1509 | L34: 1511
A35: 3434 | B35: Ostali nespomenuti financijski rashodi
B36: Projekt K100002. ODRŽAVANJE I OPREMANJE OSNOVNIH ŠKOLA | C36: =C37 -> 0 | D36: =D37 -> 0 | E36: 0 | F36: 0 | G36: 0 | H36: 0 | I36: 0 | J36: 0 | K36: 0 | L36: 0
A37: 42 | B37: Rashodi za nabavu proizvedene dugotrajne imovine | C37: =C38 -> 0 | D37: 0 | E37: 0 | F37: 0 | G37: 0 | H37: 0 | I37: 0 | J37: 0 | K37: 0 | L37: 0
A38: 4212 | B38: Poslovni objekti
A39: Program 1002. POJAČANI STANDARD U OSNOVNOM ŠKOLSTVU | C39: =SUM(C40,C47,C50,C53,C56,C60,C63,C66,C69,C72) -> 2069600 | D39: =SUM(D40,D47,D50,D53,D56,D60,D63,D66,D69,D72) -> 1734600 | E39: 5000 | F39: 330000 | G39: 0 | H39: 0 | I39: 0 | J39: 0 | K39: 2136060 | L39: 2138439
B40: Aktivnost A100001. PRODUŽENI BORAVAK | C40: =C41 -> 459600 | D40: 459600 | E40: 0 | F40: 0 | G40: 0 | H40: 0 | I40: 0 | J40: 0 | K40: 519700 | L40: 520479
A41: 31 | B41: Rashodi za zaposlene | C41: =SUM(C42:C46) -> 459600 | D41: =SUM(D42:D46) -> 459600 | E41: 0 | F41: 0 | G41: 0 | H41: 0 | I41: 0 | J41: 0 | K41: 519700 | L41: 520479
A42: 3111 | B42: Plaće za redovan rad | C42: 393600 | D42: 393600
A43: 3121 | B43: Ostali rashodi za zaposlene | K43: 462358 | L43: 463051
A44: 3132 | B44: Doprinos za obvezno zdravstveno osiguranje | C44: 50000 | D44: 50000
A45: 3133 | B45: Doprinos za obvezno osiguranje u slučaju nezaposlenosti | C45: 7000 | D45: 7000 | K45: 50300 | L45: 50375
A46: 3212 | B46: Naknade za prijevoz, za rad na terenu i odvojeni život | C46: 9000 | D46: 9000 | K46: 7042 | L46: 7053
B47: Aktivnost A100003. DONACIJE PRIVATNIM OSNOVNIM ŠKOLAMA | C47: =C48 -> 0 | D47: =D48 -> 0 | E47: 0 | F47: 0 | G47: 0 | H47: 0 | I47: 0 | J47: 0 | K47: 0 | L47: 0
A48: 38 | B48: Ostali rashodi | C48: =C49 -> 0 | D48: 0 | E48: 0 | F48: 0 | G48: 0 | H48: 0 | I48: 0 | J48: 0 | K48: 0 | L48: 0
A49: 3811 | B49: Tekuće donacije u novcu
B50: Aktivnost A100004. SUFINANCIRANJE PREHRANE | C50: =C51 -> 600000 | D50: =D51 -> 300000 | E50: 0 | F50: 300000 | G50: 0 | H50: 0 | I50: 0 | J50: 0 | K50: 603600 | L50: 604505
A51: 32 | B51: Materijalni rashodi | C51: =C52 -> 600000 | D51: 300000 | E51: 0 | F51: 300000 | G51: 0 | H51: 0 | I51: 0 | J51: 0 | K51: 603600 | L51: 604505
A52: 3222 | B52: Materijal i sirovine | C52: 600000 | D52: 300000 | E52: 0 | F52: 300000 | K52: 603600 | L52: 604505
B53: Aktivnost A100006. NAKNADE ZA RAD ŠKOLSKIH ODBORA | C53: =C54 -> 45000 | D53: =D54 -> 45000 | E53: 0 | F53: 0 | G53: 0 | H53: 0 | I53: 0 | J53: 0 | K53: 45270 | L53: 45338
A54: 32 | B54: Materijalni rashodi | C54: =C55 -> 45000 | D54: 45000 | E54: 0 | F54: 0 | G54: 0 | H54: 0 | I54: 0 | J54: 0 | K54: 45270 | L54: 45338
A55: 3291 | B55: Naknade za rad predstavničkih i izvršnih tijela, povjerenstava i sl. | C55: 45000 | D55: 45000 | K55: 45270 | L55: 45338
B56: Aktivnost A100007. OSTALE IZVANNASTAVNE AKTIVNOSTI | C56: =C57 -> 270000 | D56: =D57 -> 270000 | E56: 0 | F56: 0 | G56: 0 | H56: 0 | I56: 0 | J56: 0 | K56: 271620 | L56: 272027
A57: 32 | B57: Materijalni rashodi | C57: =SUM(C58:C59) -> 270000 | D57: =SUM(D58:D59) -> 270000 | E57: 0 | F57: 0 | G57: 0 | H57: 0 | I57: 0 | J57: 0 | K57: 271620 | L57: 272027
A58: 3231 | B58: Usluge telefona, pošte i prijevoza
A59: 3299 | B59: Ostali nespomenuti rashodi poslovanja | C59: 270000 | D59: 270000 | K59: 271620 | L59: 272027
B60: Aktivnost A100008. ŠKOLA U PRIRODI | C60: =C61 -> 60000 | D60: =D61 -> 30000 | E60: 0 | F60: 30000 | G60: 0 | H60: 0 | I60: 0 | J60: 0 | K60: 60360 | L60: 60451
A61: 32 | B61: Materijalni rashodi | C61: =C62 -> 60000 | D61: 30000 | E61: 0 | F61: 30000 | G61: 0 | H61: 0 | I61: 0 | J61: 0 | K61: 60360 | L61: 60451
A62: 3299 | B62: Ostali nespomenuti rashodi poslovanja | C62: 60000 | D62: 30000 | F62: 30000 | K62: 60360 | L62: 60451
B63: Aktivnost A100010. VIKENDOM U ŠPORTSKE DVORANE | C63: =C64 -> 45000 | D63: =D64 -> 45000 | E63: 0 | F63: 0 | G63: 0 | H63: 0 | I63: 0 | J63: 0 | K63: 45270 | L63: 45338
A64: 32 | B64: Materijalni rashodi | C64: =C65 -> 45000 | D64: 45000 | E64: 0 | F64: 0 | G64: 0 | H64: 0 | I64: 0 | J64: 0 | K64: 45270 | L64: 45338
A65: 3237 | B65: Intelektualne i osobne usluge | C65: 45000 | D65: 45000 | K65: 45270 | L65: 45338
B66: Aktivnost A100011. POMOĆNICI U NASTAVI | C66: =C67 -> 35000 | D66: =D67 -> 35000 | E66: 0 | F66: 0 | G66: 0 | H66: 0 | I66: 0 | J66: 0 | K66: 35210 | L66: 35263
A67: 32 | B67: Materijalni rashodi | C67: =C68 -> 35000 | D67: 35000 | E67: 0 | F67: 0 | G67: 0 | H67: 0 | I67: 0 | J67: 0 | K67: 35210 | L67: 35263
A68: 3237 | B68: Intelektualne i osobne usluge | C68: 35000 | D68: 35000 | K68: 35210 | L68: 35263
B69: Aktivnost A100002.NABAVA BESPLATNIH UDŽBENIKA | C69: =C70 -> 0 | D69: =D70 -> 0 | E69: 0 | F69: 0 | G69: 0 | H69: 0 | I69: 0 | J69: 0 | K69: 0 | L69: 0
A70: 37 | B70: Naknade građanima i kućanstvima na temelju osiguranja i druge naknade | C70: =C71 -> 0 | D70: 0 | E70: 0 | F70: 0 | G70: 0 | H70: 0 | I70: 0 | J70: 0 | K70: 0 | L70: 0
A71: 3722 | B71: Naknade građanima i kućanstvima u naravi
B72: Projekt K100005. ODRŽAVANJE I OPREMANJE OSNOVNIH ŠKOLA ZA POBOLJŠANJE STANDARDA | C72: 555000 | D72: =SUM(D73,D75) -> 550000 | E72: 5000 | F72: 0 | G72: 0 | H72: 0 | I72: 0 | J72: 0 | K72: 555030 | L72: 555038
A73: 32 | B73: Materijalni rashodi | C73: =C74 -> 550000 | D73: =D74 -> 550000 | E73: 0 | F73: 0 | G73: 0 | H73: 0 | I73: 0 | J73: 0 | K73: 550000 | L73: 550000
A74: 3232 | B74: Usluge tekućeg i investicijskog održavanja | C74: 550000 | D74: 550000 | K74: 550000 | L74: 550000
A75: 42 | B75: Rashodi za nabavu proizvedene dugotrajne imovine | C75: =SUM(C76:C78) -> 5000 | D75: =SUM(D76:D78) -> 0 | E75: 5000 | F75: 0 | G75: 0 | H75: 0 | I75: 0 | J75: 0 | K75: 5030 | L75: 5038
A76: 4221 | B76: Uredska oprema i namještaj
A77: 4227 | B77: Uređaji, strojevi i oprema za ostale namjene
A78: 4241 | B78: Knjige | C78: 5000 | E78: 5000 | K78: 5030 | L78: 5038
B79: UKUPNO GLAVA 03 : | C79: =SUM(C39,C10) -> 3319040 | D79: =SUM(D39,D10) -> 2954040 | E79: 25000 | F79: 340000 | G79: 0 | H79: 0 | I79: 0 | J79: 0 | K79: 3392997 | L79: 3397261
C82: KLASA:003-05/15-01/07 | E82: M.P. | I82: Ravnatelj:
A83: . | B83: U Kašini, 30 .prosinca 2015. | C83: UR.BROJ:251-227-03-15-01
I85: ___________________________________________

Sheet OBRAZLOŽENJE
A1: Obrazac Obrazloženja financijskog plana
A4: NAZIV KORISNIKA: | B4: OŠ VUGROVEC - KAŠINA
A6: SAŽETAK DJELOKRUGA: | B6: OSNOVNOŠKOLSKO OBRAZOVANJE
A9: 1. NAZIV PROGRAMA | B9: osnovnoškolsko obrazovanje
A11: 2. CILJEVI (što se programom želi postići) | B11: Škola provodi osnovnoškolsko obrazovanje te ovim financijskim planom želi osigurati sredstva za redoviti rad škole uz suvremene oblike poučavanja primjerene potrebama učenika u današnjem okružju.
A18: 3. NAČIN OSTVARENJA CILJA (kako se nastoji realizirati program, tko je korisnik ili primatelj usluge) | B18: Racionalnim korištenjem sredstava osigurati redovit i uspješan rad škole.
A21: 4. ZAKONSKE I DRUGE PODLOGE NA KOJIMA SE ZASNIVA PROGRAM | B21: Smjernice Ministarstva financija i ostali pozitivni propisi koji uređuju rad i poslovanje proračunskih korisnika.
A25: 5. POKAZATELJI REZULTATA NA KOJIMA SE ZASNIVAJU IZRAČUNI I OCJENE POTREBNIH SREDSTAVA | B25: Izračun se zasniva na kriterijima prema Programu javnih potreba u osnovnom odgoju i obrazovanju Grada Zagreba, a suklađen je s potrebama škole vezano uz provođenje redovitog programa rada škole, Školskog kurikuluma, Godišnjeg plana i programa rada škole uz svakodnevno i redovito podmirivanje nastalih obveza.
A28: 6. RAZLOG ODSTUPANJA OD PROŠLOGODIŠNJIH PROJEKCIJA | B28: Nema većih odstupanja od prošlogodišnjih projekcija.
A34: 7. POKAZATELJI USPJEŠNOSTI: | B34: Godišnje financijsko izvješće pokazuje uspješnost planiranja potrebnih sredstava.
